{"text_format":"1","workbook":"xlsx","n_sheets":4,"sheets":["入力シート","店舗・経費コード一覧","税率","使用方法"],"not_rendered":{"charts":0,"images":1,"macros":1,"external_links":0,"defined_names":19,"comments":0,"pivot_tables":0},"unopened":[],"bounds":{"document_bytes":16777216,"sheet_cells":100000,"rows_first":2000,"rows_last":500,"rows_between":2000,"halvings":0,"cell_chars":16384,"cell_head_chars":4096},"cells_cut":0,"cells_raw":0,"read":"whole","date_system":"1900"}

{"sheet":"入力シート","index":0,"n_rows":210,"n_cols":9,"rows_kept":210,"cut":false,"hidden":false,"merged":[[4,0,4,2],[6,0,6,2],[7,0,7,2],[0,0,0,2],[1,0,1,2],[2,0,2,2],[3,0,3,2],[5,0,5,2]]}
["計上日付",null,null,"20190410","※必須","YYYYMMDD形式"]
["取引先コード",null,null,"123456","※必須"]
["発注店舗コード",null,null,"0024:二十四軒店","※必須"]
["生協担当者",null,null,"コープ　太郎","※必須","全半角混在可能（全角10文字相当）"]
["入力者氏名",null,null,"取引　次郎","※必須","全半角混在可能（全角10文字相当）"]
["税率",null,null,"8%","※必須","半角数字"]
["入力者連絡先",null,null,null,null,"英数字記号20文字"]
["連絡事項",null,null,null,null,"全半角混在可能（全角30文字相当）"]
[]
["NO","店舗CD","店舗名称","摘要 （全半角混在可能（全角40文字相当））","経費CD","経費名称","数量","単価","金額"]
["1",24,{"$f":"IF(ISNA(VLOOKUP(TEXT(B11, \"000#\"), LIST_TENPO, 2, FALSE)), \"\", VLOOKUP(TEXT(B11, \"000#\"), LIST_TENPO, 2, FALSE))","v":"二十四軒店"},"（入力例）臨時アルバイト代として",1326,{"$f":"IF(ISNA(VLOOKUP(TEXT(E11, \"000#\"), LIST_KEIHI, 2, FALSE)), \"\", VLOOKUP(TEXT(E11, \"000#\"), LIST_KEIHI, 2, FALSE))","v":"委託人件費"},5,4200,{"$f":"IF(B11<>\"\", ROUND(G11*H11, 0), \"\")","v":21000}]
["2",24,"二十四軒店","（入力例）臨時アルバイトユニフォーム代として",1934,"ユニフォーム代",5,4800,{"$f":"IF(B12<>\"\", ROUND(G12*H12, 0), \"\")","v":24000}]
["3",24,"二十四軒店","（入力例）臨時アルバイトユニフォームのクリーニング代として",1946,"クリーニング費用",5,420,2100]
["4",null,"",null,null,"",null,null,""]
["5",null,"",null,null,"",null,null,""]
["6",null,"",null,null,"",null,null,""]
["7",null,"",null,null,"",null,null,""]
["8",null,"",null,null,"",null,null,""]
["9",null,"",null,null,"",null,null,""]
["10",null,"",null,null,"",null,null,""]
["11",null,"",null,null,"",null,null,""]
["12",null,"",null,null,"",null,null,""]
["13",null,"",null,null,"",null,null,""]
["14",null,"",null,null,"",null,null,""]
["15",null,"",null,null,"",null,null,""]
["16",null,"",null,null,"",null,null,""]
["17",null,"",null,null,"",null,null,""]
["18",null,"",null,null,"",null,null,""]
["19",null,"",null,null,"",null,null,""]
["20",null,"",null,null,"",null,null,""]
["21",null,"",null,null,"",null,null,""]
["22",null,"",null,null,"",null,null,""]
["23",null,"",null,null,"",null,null,""]
["24",null,"",null,null,"",null,null,""]
["25",null,"",null,null,"",null,null,""]
["26",null,"",null,null,"",null,null,""]
["27",null,"",null,null,"",null,null,""]
["28",null,"",null,null,"",null,null,""]
["29",null,"",null,null,"",null,null,""]
["30",null,"",null,null,"",null,null,""]
["31",null,"",null,null,"",null,null,""]
["32",null,"",null,null,"",null,null,""]
["33",null,{"$f":"IF(ISNA(VLOOKUP(TEXT(B43, \"000#\"), LIST_TENPO, 2, FALSE)), \"\", VLOOKUP(TEXT(B43, \"000#\"), LIST_TENPO, 2, FALSE))","v":""},null,null,{"$f":"IF(ISNA(VLOOKUP(TEXT(E43, \"000#\"), LIST_KEIHI, 2, FALSE)), \"\", VLOOKUP(TEXT(E43, \"000#\"), LIST_KEIHI, 2, FALSE))","v":""},null,null,""]
["34",null,"",null,null,"",null,null,""]
["35",null,"",null,null,"",null,null,""]
["36",null,"",null,null,"",null,null,""]
["37",null,"",null,null,"",null,null,""]
["38",null,"",null,null,"",null,null,""]
["39",null,"",null,null,"",null,null,""]
["40",null,"",null,null,"",null,null,""]
["41",null,"",null,null,"",null,null,""]
["42",null,"",null,null,"",null,null,""]
["43",null,"",null,null,"",null,null,""]
["44",null,"",null,null,"",null,null,""]
["45",null,"",null,null,"",null,null,""]
["46",null,"",null,null,"",null,null,""]
["47",null,"",null,null,"",null,null,""]
["48",null,"",null,null,"",null,null,""]
["49",null,"",null,null,"",null,null,""]
["50",null,"",null,null,"",null,null,""]
["51",null,"",null,null,"",null,null,""]
["52",null,"",null,null,"",null,null,""]
["53",null,"",null,null,"",null,null,""]
["54",null,"",null,null,"",null,null,""]
["55",null,"",null,null,"",null,null,""]
["56",null,"",null,null,"",null,null,""]
["57",null,"",null,null,"",null,null,""]
["58",null,"",null,null,"",null,null,""]
["59",null,"",null,null,"",null,null,""]
["60",null,"",null,null,"",null,null,""]
["61",null,"",null,null,"",null,null,""]
["62",null,"",null,null,"",null,null,""]
["63",null,"",null,null,"",null,null,""]
["64",null,"",null,null,"",null,null,""]
["65",null,{"$f":"IF(ISNA(VLOOKUP(TEXT(B75, \"000#\"), LIST_TENPO, 2, FALSE)), \"\", VLOOKUP(TEXT(B75, \"000#\"), LIST_TENPO, 2, FALSE))","v":""},null,null,{"$f":"IF(ISNA(VLOOKUP(TEXT(E75, \"000#\"), LIST_KEIHI, 2, FALSE)), \"\", VLOOKUP(TEXT(E75, \"000#\"), LIST_KEIHI, 2, FALSE))","v":""},null,null,""]
["66",null,"",null,null,"",null,null,{"$f":"IF(B76<>\"\", ROUND(G76*H76, 0), \"\")","v":""}]
["67",null,"",null,null,"",null,null,""]
["68",null,"",null,null,"",null,null,""]
["69",null,"",null,null,"",null,null,""]
["70",null,"",null,null,"",null,null,""]
["71",null,"",null,null,"",null,null,""]
["72",null,"",null,null,"",null,null,""]
["73",null,"",null,null,"",null,null,""]
["74",null,"",null,null,"",null,null,""]
["75",null,"",null,null,"",null,null,""]
["76",null,"",null,null,"",null,null,""]
["77",null,"",null,null,"",null,null,""]
["78",null,"",null,null,"",null,null,""]
["79",null,"",null,null,"",null,null,""]
["80",null,"",null,null,"",null,null,""]
["81",null,"",null,null,"",null,null,""]
["82",null,"",null,null,"",null,null,""]
["83",null,"",null,null,"",null,null,""]
["84",null,"",null,null,"",null,null,""]
["85",null,"",null,null,"",null,null,""]
["86",null,"",null,null,"",null,null,""]
["87",null,"",null,null,"",null,null,""]
["88",null,"",null,null,"",null,null,""]
["89",null,"",null,null,"",null,null,""]
["90",null,"",null,null,"",null,null,""]
["91",null,"",null,null,"",null,null,""]
["92",null,"",null,null,"",null,null,""]
["93",null,"",null,null,"",null,null,""]
["94",null,"",null,null,"",null,null,""]
["95",null,"",null,null,"",null,null,""]
["96",null,"",null,null,"",null,null,""]
["97",null,{"$f":"IF(ISNA(VLOOKUP(TEXT(B107, \"000#\"), LIST_TENPO, 2, FALSE)), \"\", VLOOKUP(TEXT(B107, \"000#\"), LIST_TENPO, 2, FALSE))","v":""},null,null,{"$f":"IF(ISNA(VLOOKUP(TEXT(E107, \"000#\"), LIST_KEIHI, 2, FALSE)), \"\", VLOOKUP(TEXT(E107, \"000#\"), LIST_KEIHI, 2, FALSE))","v":""},null,null,""]
["98",null,"",null,null,"",null,null,""]
["99",null,"",null,null,"",null,null,""]
["100",null,"",null,null,"",null,null,""]
["101",null,"",null,null,"",null,null,""]
["102",null,"",null,null,"",null,null,""]
["103",null,"",null,null,"",null,null,""]
["104",null,"",null,null,"",null,null,""]
["105",null,"",null,null,"",null,null,""]
["106",null,"",null,null,"",null,null,""]
["107",null,"",null,null,"",null,null,""]
["108",null,"",null,null,"",null,null,""]
["109",null,"",null,null,"",null,null,""]
["110",null,"",null,null,"",null,null,""]
["111",null,"",null,null,"",null,null,""]
["112",null,"",null,null,"",null,null,""]
["113",null,"",null,null,"",null,null,""]
["114",null,"",null,null,"",null,null,""]
["115",null,"",null,null,"",null,null,""]
["116",null,"",null,null,"",null,null,""]
["117",null,"",null,null,"",null,null,""]
["118",null,"",null,null,"",null,null,""]
["119",null,"",null,null,"",null,null,""]
["120",null,"",null,null,"",null,null,""]
["121",null,"",null,null,"",null,null,""]
["122",null,"",null,null,"",null,null,""]
["123",null,"",null,null,"",null,null,""]
["124",null,"",null,null,"",null,null,""]
["125",null,"",null,null,"",null,null,""]
["126",null,"",null,null,"",null,null,""]
["127",null,"",null,null,"",null,null,""]
["128",null,"",null,null,"",null,null,""]
["129",null,{"$f":"IF(ISNA(VLOOKUP(TEXT(B139, \"000#\"), LIST_TENPO, 2, FALSE)), \"\", VLOOKUP(TEXT(B139, \"000#\"), LIST_TENPO, 2, FALSE))","v":""},null,null,{"$f":"IF(ISNA(VLOOKUP(TEXT(E139, \"000#\"), LIST_KEIHI, 2, FALSE)), \"\", VLOOKUP(TEXT(E139, \"000#\"), LIST_KEIHI, 2, FALSE))","v":""},null,null,""]
["130",null,"",null,null,"",null,null,{"$f":"IF(B140<>\"\", ROUND(G140*H140, 0), \"\")","v":""}]
["131",null,"",null,null,"",null,null,""]
["132",null,"",null,null,"",null,null,""]
["133",null,"",null,null,"",null,null,""]
["134",null,"",null,null,"",null,null,""]
["135",null,"",null,null,"",null,null,""]
["136",null,"",null,null,"",null,null,""]
["137",null,"",null,null,"",null,null,""]
["138",null,"",null,null,"",null,null,""]
["139",null,"",null,null,"",null,null,""]
["140",null,"",null,null,"",null,null,""]
["141",null,"",null,null,"",null,null,""]
["142",null,"",null,null,"",null,null,""]
["143",null,"",null,null,"",null,null,""]
["144",null,"",null,null,"",null,null,""]
["145",null,"",null,null,"",null,null,""]
["146",null,"",null,null,"",null,null,""]
["147",null,"",null,null,"",null,null,""]
["148",null,"",null,null,"",null,null,""]
["149",null,"",null,null,"",null,null,""]
["150",null,"",null,null,"",null,null,""]
["151",null,"",null,null,"",null,null,""]
["152",null,"",null,null,"",null,null,""]
["153",null,"",null,null,"",null,null,""]
["154",null,"",null,null,"",null,null,""]
["155",null,"",null,null,"",null,null,""]
["156",null,"",null,null,"",null,null,""]
["157",null,"",null,null,"",null,null,""]
["158",null,"",null,null,"",null,null,""]
["159",null,"",null,null,"",null,null,""]
["160",null,"",null,null,"",null,null,""]
["161",null,{"$f":"IF(ISNA(VLOOKUP(TEXT(B171, \"000#\"), LIST_TENPO, 2, FALSE)), \"\", VLOOKUP(TEXT(B171, \"000#\"), LIST_TENPO, 2, FALSE))","v":""},null,null,{"$f":"IF(ISNA(VLOOKUP(TEXT(E171, \"000#\"), LIST_KEIHI, 2, FALSE)), \"\", VLOOKUP(TEXT(E171, \"000#\"), LIST_KEIHI, 2, FALSE))","v":""},null,null,""]
["162",null,"",null,null,"",null,null,""]
["163",null,"",null,null,"",null,null,""]
["164",null,"",null,null,"",null,null,""]
["165",null,"",null,null,"",null,null,""]
["166",null,"",null,null,"",null,null,""]
["167",null,"",null,null,"",null,null,""]
["168",null,"",null,null,"",null,null,""]
["169",null,"",null,null,"",null,null,""]
["170",null,"",null,null,"",null,null,""]
["171",null,"",null,null,"",null,null,""]
["172",null,"",null,null,"",null,null,""]
["173",null,"",null,null,"",null,null,""]
["174",null,"",null,null,"",null,null,""]
["175",null,"",null,null,"",null,null,""]
["176",null,"",null,null,"",null,null,""]
["177",null,"",null,null,"",null,null,""]
["178",null,"",null,null,"",null,null,""]
["179",null,"",null,null,"",null,null,""]
["180",null,"",null,null,"",null,null,""]
["181",null,"",null,null,"",null,null,""]
["182",null,"",null,null,"",null,null,""]
["183",null,"",null,null,"",null,null,""]
["184",null,"",null,null,"",null,null,""]
["185",null,"",null,null,"",null,null,""]
["186",null,"",null,null,"",null,null,""]
["187",null,"",null,null,"",null,null,""]
["188",null,"",null,null,"",null,null,""]
["189",null,"",null,null,"",null,null,""]
["190",null,"",null,null,"",null,null,""]
["191",null,"",null,null,"",null,null,""]
["192",null,"",null,null,"",null,null,""]
["193",null,{"$f":"IF(ISNA(VLOOKUP(TEXT(B203, \"000#\"), LIST_TENPO, 2, FALSE)), \"\", VLOOKUP(TEXT(B203, \"000#\"), LIST_TENPO, 2, FALSE))","v":""},null,null,{"$f":"IF(ISNA(VLOOKUP(TEXT(E203, \"000#\"), LIST_KEIHI, 2, FALSE)), \"\", VLOOKUP(TEXT(E203, \"000#\"), LIST_KEIHI, 2, FALSE))","v":""},null,null,""]
["194",null,"",null,null,"",null,null,{"$f":"IF(B204<>\"\", ROUND(G204*H204, 0), \"\")","v":""}]
["195",null,"",null,null,"",null,null,""]
["196",null,"",null,null,"",null,null,""]
["197",null,"",null,null,"",null,null,""]
["198",null,"",null,null,"",null,null,""]
["199",null,"",null,null,"",null,null,""]
["200",null,"",null,null,"",null,null,""]

{"sheet":"店舗・経費コード一覧","index":1,"n_rows":465,"n_cols":10,"rows_kept":465,"cut":false,"hidden":true,"merged":[]}
[null,"店舗コード一覧",null,null,"経費コード一覧",null,null,"発注店舗コード"]
[null,"店舗CD","店舗名称",null,"経費CD","経費名称",null,"店舗CD","店舗名称","リスト表示"]
[null,"0024","二十四軒店",null,"1326","委託人件費",null,"0024","二十四軒店",{"$f":"H3&\":\"&I3","v":"0024:二十四軒店"}]
[null,"0036","ほんどおり店",null,"1818","給食費",null,"0036","ほんどおり店",{"$f":"H4&\":\"&I4","v":"0036:ほんどおり店"}]
[null,"0050","ツインハープ店",null,"1934","ユニフォーム代",null,"0050","ツインハープ店","0050:ツインハープ店"]
[null,"0073","４条通り店",null,"1946","クリーニング費用",null,"0073","４条通り店","0073:４条通り店"]
[null,"0115","アモール店",null,"2318","その他福利厚生費",null,"0115","アモール店","0115:アモール店"]
[null,"0139","のぼりべつ東店",null,"3013","組織広報費",null,"0139","のぼりべつ東店","0139:のぼりべつ東店"]
[null,"0141","きこない店",null,"3116","グループ活動費",null,"0141","きこない店","0141:きこない店"]
[null,"0152","本郷店",null,"3165","出資促進費",null,"0152","本郷店","0152:本郷店"]
[null,"0176","ふくしま店",null,"3177","活動補助費",null,"0176","ふくしま店","0176:ふくしま店"]
[null,"0188","配食苫小牧",null,"3189","基礎活動費",null,"0190","配食旭川","0190:配食旭川"]
[null,"0190","配食旭川",null,"3190","活動補償費",null,"0206","配食苫小牧工場","0206:配食苫小牧工場"]
[null,"0206","配食苫小牧工場",null,"3414","視聴購読費",null,"0220","配食旭川工場","0220:配食旭川工場"]
[null,"0220","配食旭川工場",null,"3426","内報費",null,"0231","配食直販施設","0231:配食直販施設"]
[null,"0231","配食直販施設",null,"3438","教育費",null,"0243","中の島店","0243:中の島店"]
[null,"0243","中の島店",null,"3440","ＦＳ推進費",null,"0267","北12条店","0267:北12条店"]
[null,"0255","配食函館直販部",null,"3451","調査研究費",null,"0281","元町店","0281:元町店"]
[null,"0267","北12条店",null,"3463","研修表彰費",null,"0383","北郷店","0383:北郷店"]
[null,"0279","配食苫小牧直販部",null,"3475","顧問料",null,"0395","配食フリエ札幌","0395:配食フリエ札幌"]
[null,"0281","元町店",null,"3517","採用費",null,"0401","配食釧路工場","0401:配食釧路工場"]
[null,"0292","配食旭川直販部",null,"3530","異動費",null,"0451","Socia","0451:Socia"]
[null,"0309","配食石狩",null,"3621","本部供促・広告宣伝費",null,"0504","新道店","0504:新道店"]
[null,"0311","ていね店",null,"3645","その他広告宣伝費",null,"0516","新橋大通店","0516:新橋大通店"]
[null,"0322","配食石狩直販部",null,"3671","店舗・供促費",null,"0541","野幌店","0541:野幌店"]
[null,"0358","旧近文店",null,"3712","ＰＯＰ用品費",null,"0553","shena","0553:shena"]
[null,"0360","配食石狩工場",null,"3724","値札ラベル費",null,"0565","小樽南店","0565:小樽南店"]
[null,"0371","配食資材原料センター",null,"3748","店内装飾費",null,"0589","LUCY","0589:LUCY"]
[null,"0383","北郷店",null,"3761","マネキン・リース料",null,"0591","新琴似南店","0591:新琴似南店"]
[null,"0395","配食フリエ札幌",null,"3773","事故・クレーム処理費",null,"0619","西岡店","0619:西岡店"]
[null,"0401","配食釧路工場",null,"3815","車両運搬費",null,"0621","北広島店","0621:北広島店"]
[null,"0413","配食釧路",null,"3827","車両燃料費",null,"0656","とんでん店","0656:とんでん店"]
[null,"0425","配食帯広工場",null,"3839","車両修理費",null,"0668","いしかわ店","0668:いしかわ店"]
[null,"0437","配食帯広",null,"3918","スーパーバック",null,"0670","しがイースト店","0670:しがイースト店"]
[null,"0449","旧篠路資産",null,"3920","手付袋",null,"0723","しが驛前店","0723:しが驛前店"]
[null,"0451","Socia",null,"3931","ポリ袋",null,"0735","滝川店","0735:滝川店"]
[null,"0462","旧西篠路店",null,"3943","包装資材",null,"0759","深川店","0759:深川店"]
[null,"0474","配食帯広直販部",null,"3955","包装紙",null,"0784","川下店","0784:川下店"]
[null,"0504","新道店",null,"4250","仕入費用",null,"0802","いしかり店","0802:いしかり店"]
[null,"0516","新橋大通店",null,"4327","車検費",null,"0851","月寒ひがし店","0851:月寒ひがし店"]
[null,"0541","野幌店",null,"4339","自動車保険料",null,"0863","かじ店","0863:かじ店"]
[null,"0553","shena",null,"4352","運搬委託料",null,"0875","はぼろ店","0875:はぼろ店"]
[null,"0565","小樽南店",null,"4364","委託宅配費",null,"0899","赤川店","0899:赤川店"]
[null,"0589","LUCY",null,"4418","電気代",null,"0929","菊水元町店","0929:菊水元町店"]
[null,"0591","新琴似南店",null,"4510","上下水道",null,"0931","藤野店","0931:藤野店"]
[null,"0619","西岡店",null,"4613","冷暖房燃料",null,"0942","湯の川店","0942:湯の川店"]
[null,"0621","北広島店",null,"4625","加工燃料",null,"0991","新はっさむ店","0991:新はっさむ店"]
[null,"0632","配食札幌",null,"4716","塵芥処理",null,"1065","ひばりヶ丘店","1065:ひばりヶ丘店"]
[null,"0644","配食函館",null,"4728","床洗い",null,"1119","旭岡店","1119:旭岡店"]
[null,"0656","とんでん店",null,"4765","衛生消耗品",null,"1170","ひとみ店","1170:ひとみ店"]
[null,"0668","いしかわ店",null,"4820","消耗器具備品",null,"1261","旧琴似24軒店","1261:旧琴似24軒店"]
[null,"0670","しがイースト店",null,"4832","営業用消耗品",null,"1399","あいの里店","1399:あいの里店"]
[null,"0700","南空知センター",null,"4856","許認可",null,"1417","オタモイ店","1417:オタモイ店"]
[null,"0723","しが驛前店",null,"4911","事務用品",null,"1429","植物園店","1429:植物園店"]
[null,"0735","滝川店",null,"4923","貯蔵伝票",null,"1431","末広西店","1431:末広西店"]
[null,"0759","深川店",null,"4935","印刷費",null,"1454","星置店","1454:星置店"]
[null,"0772","斜里デポ",null,"4947","レシート・レコード",null,"1478","富良野店","1478:富良野店"]
[null,"0784","川下店",null,"4961","業務委託料",null,"1480","平岡店","1480:平岡店"]
[null,"0802","いしかり店",null,"4972","弁護士等手数料",null,"1545","美園店","1545:美園店"]
[null,"0851","月寒ひがし店",null,"5113","総代会関係",null,"1557","岩見沢東店","1557:岩見沢東店"]
[null,"0863","かじ店",null,"5125","理事会・常勤会",null,"1594","東光店","1594:東光店"]
[null,"0875","はぼろ店",null,"5137","担当者会議",null,"1601","春光店","1601:春光店"]
[null,"0899","赤川店",null,"5149","会議運営費",null,"1612","倶知安店","1612:倶知安店"]
[null,"0929","菊水元町店",null,"5216","チャーター料１（借上げ）",null,"1624","岩見沢南店","1624:岩見沢南店"]
[null,"0931","藤野店",null,"5228","現金運搬",null,"1636","砂川店","1636:砂川店"]
[null,"0942","湯の川店",null,"5241","市内交通費",null,"1650","函館山手店","1650:函館山手店"]
[null,"0978","旧留萌店",null,"5253","メール便代",null,"1661","忠和店","1661:忠和店"]
[null,"0980","旧北33条店",null,"5265","チャーター料２（通勤）",null,"1697","みどり店",{"$f":"H68&\":\"&I68","v":"1697:みどり店"}]
[null,"0991","新はっさむ店",null,"5411","電話料",null,"1703","神楽店","1703:神楽店"]
[null,"1065","ひばりヶ丘店",null,"5423","切手・ハガキ代",null,"1715","余市店","1715:余市店"]
[null,"1119","旭岡店",null,"5526","寄付等雑費",null,"1727","夕張清陵店","1727:夕張清陵店"]
[null,"1170","ひとみ店",null,"5721","レジ保守料",null,"1739","桔梗店","1739:桔梗店"]
[null,"1261","旧琴似24軒店",null,"5733","備品保守料",null,"1741","にしの店","1741:にしの店"]
[null,"1399","あいの里店",null,"5745","警備料",null,"1752","エルフィン店","1752:エルフィン店"]
[null,"1417","オタモイ店",null,"5812","建物補修繕費",null,"1764","貝塚店","1764:貝塚店"]
[null,"1429","植物園店",null,"5824","備品補修繕費",null,"1776","中央店","1776:中央店"]
[null,"1431","末広西店",null,"5836","除雪費",null,"1788","桜ヶ岡店","1788:桜ヶ岡店"]
[null,"1454","星置店",null,"5848","設備補修繕費",null,"1806","春採店","1806:春採店"]
[null,"1478","富良野店",null,"5850","電気補修繕費",null,"1818","釧路曙店","1818:釧路曙店"]
[null,"1480","平岡店",null,"5861","冷機補修繕費",null,"1831","白糠店","1831:白糠店"]
[null,"1545","美園店",null,"5915","土地賃借料",null,"1843","るもい店","1843:るもい店"]
[null,"1557","岩見沢東店",null,"5927","建物賃借料",null,"1855","びばい店","1855:びばい店"]
[null,"1594","東光店",null,"9001","経費１",null,"1867","ほくと店","1867:ほくと店"]
[null,"1601","春光店",null,"9002","経費２",null,"1879","えべつ店","1879:えべつ店"]
[null,"1612","倶知安店",null,"9003","貯蔵品（用度品）",null,"1881","ねむろ店","1881:ねむろ店"]
[null,"1624","岩見沢南店",null,"9015","建設仮勘定",null,"1892","なかしべつ店","1892:なかしべつ店"]
[null,"1636","砂川店",null,"9027","仮払金（特損予定）",null,"1909","だて店","1909:だて店"]
[null,"1650","函館山手店",null,"9028","仮払金（その他）",null,"1911","東むろらん店","1911:東むろらん店"]
[null,"1661","忠和店",null,"9052","立替金（マイバッグ）",null,"1922","星が浦店","1922:星が浦店"]
[null,"1697","みどり店",null,null,null,null,"1934","あかびら店","1934:あかびら店"]
[null,"1703","神楽店",null,null,null,null,"1946","ときわ店","1946:ときわ店"]
[null,"1715","余市店",null,null,null,null,"1958","べつかい店","1958:べつかい店"]
[null,"1727","夕張清陵店",null,null,null,null,"1960","のぼりべつ桜木店","1960:のぼりべつ桜木店"]
[null,"1739","桔梗店",null,null,null,null,"1971","恵み野店","1971:恵み野店"]
[null,"1741","にしの店",null,null,null,null,"1983","西宮の沢店","1983:西宮の沢店"]
[null,"1752","エルフィン店",null,null,null,null,"1995","さつない店","1995:さつない店"]
[null,"1764","貝塚店",null,null,null,null,"3013","ファミリーマートライン","3013:ファミリーマートライン"]
[null,"1776","中央店",null,null,null,null,"3037","ステイ店","3037:ステイ店"]
[null,"1788","桜ヶ岡店",null,null,null,null,"3049","栄町店","3049:栄町店"]
[null,"1806","春採店",null,null,null,null,"3051","ベーカリーライン","3051:ベーカリーライン"]
[null,"1818","釧路曙店",null,null,null,null,"3165","パセオすみよし店","3165:パセオすみよし店"]
[null,"1831","白糠店",null,null,null,null,"3219","パセオむかわ店","3219:パセオむかわ店"]
[null,"1843","るもい店",null,null,null,null,"3244","パセオしらおい店","3244:パセオしらおい店"]
[null,"1855","びばい店",null,null,null,null,"3256","静内店","3256:静内店"]
[null,"1867","ほくと店",null,null,null,null,"3268","パセオ堺町店","3268:パセオ堺町店"]
[null,"1879","えべつ店",null,null,null,null,"3270","えりも店","3270:えりも店"]
[null,"1881","ねむろ店",null,null,null,null,"3281","東町店","3281:東町店"]
[null,"1892","なかしべつ店",null,null,null,null,"3323","桜木店","3323:桜木店"]
[null,"1909","だて店",null,null,null,null,"3347","向陽台店","3347:向陽台店"]
[null,"1911","東むろらん店",null,null,null,null,"3359","パセオ川沿店","3359:パセオ川沿店"]
[null,"1922","星が浦店",null,null,null,null,"3361","様似店","3361:様似店"]
[null,"1934","あかびら店",null,null,null,null,"3402","デリカキット工場","3402:デリカキット工場"]
[null,"1946","ときわ店",null,null,null,null,"4273","デュアルカナム本部","4273:デュアルカナム本部"]
[null,"1958","べつかい店",null,null,null,null,"4467","大雪水資源本部","4467:大雪水資源本部"]
[null,"1960","のぼりべつ桜木店",null,null,null,null,"4481","物流企画管理部","4481:物流企画管理部"]
[null,"1971","恵み野店",null,null,null,null,"4546","トドック電力","4546:トドック電力"]
[null,"1983","西宮の沢店",null,null,null,null,"4613","ベルデ店","4613:ベルデ店"]
[null,"1995","さつない店",null,null,null,null,"4625","かしわ店","4625:かしわ店"]
[null,"3013","ファミリーマートライン",null,null,null,null,"4844","本部","4844:本部"]
[null,"3025","江別保育",null,null,null,null,"5514","はまなす工場","5514:はまなす工場"]
[null,"3037","ステイ店",null,null,null,null,"5575","コープ協同保険㈱","5575:コープ協同保険㈱"]
[null,"3049","栄町店",null,null,null,null,"6014","宅配運営","6014:宅配運営"]
[null,"3051","ベーカリーライン",null,null,null,null,"6051","ドライＳＣ","6051:ドライＳＣ"]
[null,"3128","戸倉土地",null,null,null,null,"6063","物流事業部","6063:物流事業部"]
[null,"3165","パセオすみよし店",null,null,null,null,"6075","配送管理部","6075:配送管理部"]
[null,"3189","ベーカリー本部",null,null,null,null,"6087","北見低温物流","6087:北見低温物流"]
[null,"3219","パセオむかわ店",null,null,null,null,"6099","生鮮市場事務所","6099:生鮮市場事務所"]
[null,"3244","パセオしらおい店",null,null,null,null,"6105","店舗物流管理","6105:店舗物流管理"]
[null,"3256","静内店",null,null,null,null,"6131","函館店舗物流","6131:函館店舗物流"]
[null,"3268","パセオ堺町店",null,null,null,null,"6142","札幌リカーセンター","6142:札幌リカーセンター"]
[null,"3270","えりも店",null,null,null,null,"6154","函館リカーセンター","6154:函館リカーセンター"]
[null,"3281","東町店",null,null,null,null,"6166","旭川リカーセンター",{"$f":"H132&\":\"&I132","v":"6166:旭川リカーセンター"}]
[null,"3323","桜木店",null,null,null,null,"6178","帯広リカーセンター","6178:帯広リカーセンター"]
[null,"3347","向陽台店",null,null,null,null,"6180","江別農産物流","6180:江別農産物流"]
[null,"3359","パセオ川沿店",null,null,null,null,"6191","江別畜産物流","6191:江別畜産物流"]
[null,"3361","様似店",null,null,null,null,"6208","江別水産物流","6208:江別水産物流"]
[null,"3402","デリカキット工場",null,null,null,null,"6210","苫小牧低温物流","6210:苫小牧低温物流"]
[null,"3414","旧深川資産管理",null,null,null,null,"6221","旭川低温物流","6221:旭川低温物流"]
[null,"3608","千歳センター",null,null,null,null,"6233","釧路低温物流","6233:釧路低温物流"]
[null,"3633","日高センター",null,null,null,null,"6245","函館生鮮日配物流","6245:函館生鮮日配物流"]
[null,"3645","苫小牧センター",null,null,null,null,"6257","石狩工場物流","6257:石狩工場物流"]
[null,"3657","室蘭センター",null,null,null,null,"6269","石狩日配ＮＢ物流","6269:石狩日配ＮＢ物流"]
[null,"3701","苫小牧生鮮物流",null,null,null,null,"6271","マテハン工房","6271:マテハン工房"]
[null,"3890","浦河デポ",null,null,null,null,"6282","釧路店舗物流","6282:釧路店舗物流"]
[null,"4613","ベルデ店",null,null,null,null,"6294","函館農産日配","6294:函館農産日配"]
[null,"4625","かしわ店",null,null,null,null,"6301","江別食品工場物流","6301:江別食品工場物流"]
[null,"4637","発寒本部店",null,null,null,null,"6312","地方物流管理","6312:地方物流管理"]
[null,"6403","プラザ店",null,null,null,null,"6324","北見リカー","6324:北見リカー"]
[null,"6415","遠軽みなみ店",null,null,null,null,"6403","プラザ店","6403:プラザ店"]
[null,"6427","きたみ春光店",null,null,null,null,"6415","遠軽みなみ店","6415:遠軽みなみ店"]
[null,"6439","みわ店",null,null,null,null,"6427","きたみ春光店","6427:きたみ春光店"]
[null,"6441","びほろ店",null,null,null,null,"6439","みわ店","6439:みわ店"]
[null,"6452","あばしり店",null,null,null,null,"6441","びほろ店","6441:びほろ店"]
[null,"6464","きよみ店",null,null,null,null,"6452","あばしり店","6452:あばしり店"]
[null,"7006","江別センター",null,null,null,null,"6464","きよみ店","6464:きよみ店"]
[null,"7018","札幌北センター",null,null,null,null,"7146","基金事務局","7146:基金事務局"]
[null,"7043","福祉活動支援センター",null,null,null,null,"7158","社会給食事業本部","7158:社会給食事業本部"]
[null,"7081","配食釧路直販部",null,null,null,null,"7160","移動販売車事業部","7160:移動販売車事業部"]
[null,"7122","新道文化教室",null,null,null,null,"7171","ＤＦ畜産ＰＣ","7171:ＤＦ畜産ＰＣ"]
[null,"7134","組織事業部",null,null,null,null,"7183","ＤＦ惣菜","7183:ＤＦ惣菜"]
[null,"7146","基金事務局",null,null,null,null,"7262","ＤＦ本部","7262:ＤＦ本部"]
[null,"7158","社会給食事業本部",null,null,null,null,"7298","配食札幌工場","7298:配食札幌工場"]
[null,"7160","移動販売車事業部",null,null,null,null,"7304","フリエホールつきさむ","7304:フリエホールつきさむ"]
[null,"7171","ＤＦ畜産ＰＣ",null,null,null,null,"7328","業務カイゼン推進室","7328:業務カイゼン推進室"]
[null,"7183","ＤＦ惣菜",null,null,null,null,"7421","事業開発室","7421:事業開発室"]
[null,"7195","ＤＦ物流",null,null,null,null,"7523","システムサポートＧ","7523:システムサポートＧ"]
[null,"7201","宅配 冷凍センター",null,null,null,null,"7614","江別工場製麺ライン","7614:江別工場製麺ライン"]
[null,"7213","雁来センター",null,null,null,null,"7833","江別工場大豆ライン","7833:江別工場大豆ライン"]
[null,"7225","リプロマネジメント",null,null,null,null,"7845","配食直販","7845:配食直販"]
[null,"7249","遠軽デポ",null,null,null,null,"7857","コンテナ洗浄ライン","7857:コンテナ洗浄ライン"]
[null,"7251","宅配 冷蔵センター",null,null,null,null,"7882","元気工房","7882:元気工房"]
[null,"7262","ＤＦ本部",null,null,null,null,"7936","リユースセンター","7936:リユースセンター"]
[null,"7286","帯広北センター",null,null,null,null,"7950","未来の森","7950:未来の森"]
[null,"7298","配食札幌工場",null,null,null,null,"7961","子育て基金","7961:子育て基金"]
[null,"7304","フリエホールつきさむ",null,null,null,null,"8023","江別文京台寮","8023:江別文京台寮"]
[null,"7316","フリエ墓地事業部",null,null,null,null,"8035","生鮮本部","8035:生鮮本部"]
[null,"7328","業務カイゼン推進室",null,null,null,null,"8072","フィッシュセンター","8072:フィッシュセンター"]
[null,"7330","店舗資産",null,null,null,null,"8084","旭川地区本部","8084:旭川地区本部"]
[null,"7365","ロジ振替用石狩工場",null,null,null,null,"8096","石狩工場本部","8096:石狩工場本部"]
[null,"7377","帯広センター",null,null,null,null,"8102","釧路地区本部","8102:釧路地区本部"]
[null,"7389","室蘭生鮮物流",null,null,null,null,"8114","役員室","8114:役員室"]
[null,"7391","白石センター",null,null,null,null,"8126","共済推進室","8126:共済推進室"]
[null,"7407","フリエホール新琴似",null,null,null,null,"8140","農産カット野菜ライン","8140:農産カット野菜ライン"]
[null,"7419","名寄センター",null,null,null,null,"8151","品質管理室","8151:品質管理室"]
[null,"7421","事業開発室",null,null,null,null,"8163","システム部","8163:システム部"]
[null,"7432","中標津センター",null,null,null,null,"8231","管理部","8231:管理部"]
[null,"7444","八雲センター",null,null,null,null,"8242","人事部","8242:人事部"]
[null,"7456","釧路センター",null,null,null,null,"8308","農産部","8308:農産部"]
[null,"7468","倶知安センター",null,null,null,null,"8321","畜産部","8321:畜産部"]
[null,"7470","カード推進室",null,null,null,null,"8333","水産部","8333:水産部"]
[null,"7481","厚別デポ",null,null,null,null,"8369","江別食品工場","8369:江別食品工場"]
[null,"7493","エコステーション",null,null,null,null,"8424","事業管理部","8424:事業管理部"]
[null,"7500","札幌西センター",null,null,null,null,"8450","江別生鮮センター","8450:江別生鮮センター"]
[null,"7511","北見センター",null,null,null,null,"8473","食品卸","8473:食品卸"]
[null,"7523","システムサポートＧ",null,null,null,null,"8485","デリカ部","8485:デリカ部"]
[null,"7535","旧ていね店資産管理",null,null,null,null,"8497","営業企画部",{"$f":"H196&\":\"&I196","v":"8497:営業企画部"}]
[null,"7559","留萌センター",null,null,null,null,"8503","作業改革室","8503:作業改革室"]
[null,"7572","石狩水物ライン",null,null,null,null,"8515","開発部","8515:開発部"]
[null,"7584","富良野センター",null,null,null,null,"8539","組合員活動部","8539:組合員活動部"]
[null,"7596","石狩餃子ライン",null,null,null,null,"8552","組合員相談室","8552:組合員相談室"]
[null,"7602","帯広南センター",null,null,null,null,"8576","旭川物流","8576:旭川物流"]
[null,"7614","江別工場製麺ライン",null,null,null,null,"8590","供給企画グループ","8590:供給企画グループ"]
[null,"7626","江差センター",null,null,null,null,"8606","電力事業","8606:電力事業"]
[null,"7638","瀬棚デポ",null,null,null,null,"8620","帯広地区本部","8620:帯広地区本部"]
[null,"7640","石狩工場物流",null,null,null,null,"8631","札幌地区本部","8631:札幌地区本部"]
[null,"7651","石狩大豆ライン",null,null,null,null,"8655","商品開発室","8655:商品開発室"]
[null,"7663","配食白石直販部",null,null,null,null,"8679","サポート部","8679:サポート部"]
[null,"7687","ベルデ文化教室",null,null,null,null,"8709","本部発寒センター","8709:本部発寒センター"]
[null,"7699","冷生地センター",null,null,null,null,"8734","江別工場水物ライン","8734:江別工場水物ライン"]
[null,"7705","元町保育",null,null,null,null,"8783","日用品部","8783:日用品部"]
[null,"7717","ＣＣＳソシア教室",null,null,null,null,"8801","マーケティング部","8801:マーケティング部"]
[null,"7729","ＣＣＳベルデ教室",null,null,null,null,"8813","石狩惣菜ライン","8813:石狩惣菜ライン"]
[null,"7731","札幌中央センター",null,null,null,null,"8825","石狩米飯ライン","8825:石狩米飯ライン"]
[null,"7742","オホーツクセンター",null,null,null,null,"8849","経営企画室","8849:経営企画室"]
[null,"7754","まる元",null,null,null,null,"8874","食品部","8874:食品部"]
[null,"7766","いしかわ文化教室",null,null,null,null,"8886","宅配 管理部","8886:宅配 管理部"]
[null,"7791","宅配コールセンター",null,null,null,null,"8928","エコセンター","8928:エコセンター"]
[null,"7810","きたごう文化教室",null,null,null,null,"8977","函館地区本部","8977:函館地区本部"]
[null,"7821","文化鑑賞会",null,null,null,null,"9015","室蘭地区本部","9015:室蘭地区本部"]
[null,"7833","江別工場大豆ライン",null,null,null,null,"9027","フリエ本部","9027:フリエ本部"]
[null,"7845","配食直販",null,null,null,null,"9052","ギフトセンター","9052:ギフトセンター"]
[null,"7857","コンテナ洗浄ライン",null,null,null,null,"9106","店舗運営部","9106:店舗運営部"]
[null,"7869","札幌南センター",null,null,null,null,"9179","総務部","9179:総務部"]
[null,"7871","清田センター",null,null,null,null,"9192","タレ・ドレッシングライン","9192:タレ・ドレッシングライン"]
[null,"7882","元気工房",null,null,null,null,"9234","内部監査室","9234:内部監査室"]
[null,"7894","まる元出向グループ",null,null,null,null,"9246","保険事業部","9246:保険事業部"]
[null,"7901","エルフィン訓練センター",null,null,null,null,"9313","札幌配食第一工場","9313:札幌配食第一工場"]
[null,"7912","函館魚長",null,null,null,null,"9351","生活文化事業本部","9351:生活文化事業本部"]
[null,"7924","札幌市場事務所",null,null,null,null,"9362","デリカキットライン","9362:デリカキットライン"]
[null,"7936","リユースセンター",null,null,null,null,"9404","農産焼成ライン","9404:農産焼成ライン"]
[null,"7948","トドックルーム",null,null,null,null,"9416","商品部商品管理","9416:商品部商品管理"]
[null,"7950","未来の森",null,null,null,null,"9441","江別物流センター","9441:江別物流センター"]
[null,"7961","子育て基金",null,null,null,null,"9507","おもてなし推進室","9507:おもてなし推進室"]
[null,"7973","手稲センター",null,null,null,null,"9544","石狩惣菜工場寮","9544:石狩惣菜工場寮"]
[null,"7997","旭川南センター",null,null,null,null,"9600","店舗マーケティング部","9600:店舗マーケティング部"]
[null,"8011","札幌リカーセンター",null,null,null,null,"9623","デイリー本部","9623:デイリー本部"]
[null,"8023","江別文京台寮",null,null,null,null,"9661","広報室","9661:広報室"]
[null,"8035","生鮮本部",null,null,null,null,"9672","惣菜事業本部","9672:惣菜事業本部"]
[null,"8047","江別工場委託",null,null,null,null,"9684","サービス事業部","9684:サービス事業部"]
[null,"8059","店舗物流センター",null,null,null,null,"9696","野菜パックライン","9696:野菜パックライン"]
[null,"8061","江別農産物流",null,null,null,null,"9751","苫小牧地区本部","9751:苫小牧地区本部"]
[null,"8072","フィッシュセンター",null,null,null,null,"9763","北見地区本部","9763:北見地区本部"]
[null,"8084","旭川地区本部",null,null,null,null,"9829","病院給食部","9829:病院給食部"]
[null,"8096","石狩工場本部",null,null,null,null,"0048","しろいし中央店","0048:しろいし中央店"]
[null,"8102","釧路地区本部",null,null,null,null,"0061","やまはな店","0061:やまはな店"]
[null,"8114","役員室",null,null,null,null,"0097","桑園店","0097:桑園店"]
[null,"8126","共済推進室",null,null,null,null,"8941","函館東センター","8941:函館東センター"]
[null,"8138","利尻デポ",null,null,null,null,"0103","新さっぽろ店","0103:新さっぽろ店"]
[null,"8140","農産カット野菜ライン",null,null,null,null,null,null,":"]
[null,"8151","品質管理室",null,null,null,null,null,null,":"]
[null,"8163","システム部",null,null,null,null,null,null,":"]
[null,"8199","小樽センター",null,null,null,null,null,null,":"]
[null,"8205","礼文デポ",null,null,null,null,null,null,":"]
[null,"8217","管理部(費用)",null,null,null,null,null,null,":"]
[null,"8229","システム部(費用)",null,null,null,null,null,null,":"]
[null,"8231","管理部",null,null,null,null,null,null,":"]
[null,"8242","人事部",null,null,null,null,null,null,":"]
[null,"8254","人事付",null,null,null,null,null,null,":"]
[null,"8266","出向者グループ",null,null,null,null,null,null,":"]
[null,"8278","奥尻デポ",null,null,null,null,null,null,{"$f":"H260&\":\"&I260","v":":"}]
[null,"8291","病院給食１",null,null,null,null,null,null,":"]
[null,"8308","農産部",null,null,null,null,null,null,":"]
[null,"8310","江別水産物流",null,null,null,null,null,null,":"]
[null,"8321","畜産部",null,null,null,null,null,null,":"]
[null,"8333","水産部",null,null,null,null,null,null,":"]
[null,"8345","北海道100委員",null,null,null,null,null,null,":"]
[null,"8357","シーサイド余別",null,null,null,null,null,null,":"]
[null,"8369","江別食品工場",null,null,null,null,null,null,":"]
[null,"8371","根室デポ",null,null,null,null,null,null,":"]
[null,"8382","宅配 農産セットＣ",null,null,null,null,null,null,":"]
[null,"8394","宅配 農産別積みＣ",null,null,null,null,null,null,":"]
[null,"8401","宅配 システム物流Ｃ",null,null,null,null,null,null,":"]
[null,"8424","事業管理部",null,null,null,null,null,null,":"]
[null,"8436","薬のトドック",null,null,null,null,null,null,":"]
[null,"8448","人事部営繕Ｇ",null,null,null,null,null,null,":"]
[null,"8450","江別生鮮センター",null,null,null,null,null,null,":"]
[null,"8461","フードバンク",null,null,null,null,null,null,":"]
[null,"8473","食品卸",null,null,null,null,null,null,":"]
[null,"8485","デリカ部",null,null,null,null,null,null,":"]
[null,"8497","営業企画部",null,null,null,null,null,null,":"]
[null,"8503","作業改革室",null,null,null,null,null,null,":"]
[null,"8515","開発部",null,null,null,null,null,null,":"]
[null,"8527","店舗（経費）",null,null,null,null,null,null,":"]
[null,"8539","組合員活動部",null,null,null,null,null,null,":"]
[null,"8541","店舗管理部",null,null,null,null,null,null,":"]
[null,"8552","組合員相談室",null,null,null,null,null,null,":"]
[null,"8564","江別畜産物流",null,null,null,null,null,null,":"]
[null,"8576","旭川物流",null,null,null,null,null,null,":"]
[null,"8588","コープ助け合いの会",null,null,null,null,null,null,":"]
[null,"8590","供給企画グループ",null,null,null,null,null,null,":"]
[null,"8606","電力事業",null,null,null,null,null,null,":"]
[null,"8618","ミートセンター",null,null,null,null,null,null,":"]
[null,"8620","帯広地区本部",null,null,null,null,null,null,":"]
[null,"8631","札幌地区本部",null,null,null,null,null,null,":"]
[null,"8655","商品開発室",null,null,null,null,null,null,":"]
[null,"8667","宅配 営業部",null,null,null,null,null,null,":"]
[null,"8679","サポート部",null,null,null,null,null,null,":"]
[null,"8681","稚内センター",null,null,null,null,null,null,":"]
[null,"8692","浜頓別デポ",null,null,null,null,null,null,":"]
[null,"8709","本部発寒センター",null,null,null,null,null,null,":"]
[null,"8711","ＮＢセンター",null,null,null,null,null,null,":"]
[null,"8722","店舗物流在庫",null,null,null,null,null,null,":"]
[null,"8734","江別工場水物ライン",null,null,null,null,null,null,":"]
[null,"8746","江別工場物流",null,null,null,null,null,null,":"]
[null,"8758","天塩デポ",null,null,null,null,null,null,":"]
[null,"8771","畑でレストラン",null,null,null,null,null,null,":"]
[null,"8783","日用品部",null,null,null,null,null,null,":"]
[null,"8801","マーケティング部",null,null,null,null,null,null,":"]
[null,"8813","石狩惣菜ライン",null,null,null,null,null,null,":"]
[null,"8825","石狩米飯ライン",null,null,null,null,null,null,":"]
[null,"8849","経営企画室",null,null,null,null,null,null,":"]
[null,"8851","コープさっぽろ農業賞",null,null,null,null,null,null,":"]
[null,"8862","宅配 物流管理室",null,null,null,null,null,null,":"]
[null,"8874","食品部",null,null,null,null,null,null,":"]
[null,"8886","宅配 管理部"]
[null,"8898","本部損益"]
[null,"8904","中央文化教室"]
[null,"8916","北空知センター"]
[null,"8928","エコセンター"]
[null,"8930","北見三輪店(ﾃﾅﾝﾄ)"]
[null,"8953","室蘭志賀"]
[null,"8965","武佐店"]
[null,"8977","函館地区本部"]
[null,"8989","函館センター"]
[null,"9015","室蘭地区本部"]
[null,"9027","フリエ本部"]
[null,"9039","函館リカーセンター"]
[null,"9041","インターネット店"]
[null,"9052","ギフトセンター"]
[null,"9064","帯広リカーセンター"]
[null,"9088","旭川リカーセンター"]
[null,"9106","店舗運営部"]
[null,"9118","北見生鮮物流"]
[null,"9120","北見日配物流"]
[null,"9167","旭川北センター"]
[null,"9179","総務部"]
[null,"9192","タレ・ドレッシングライン"]
[null,"9209","北見リカーセンター"]
[null,"9222","社会貢献推進室"]
[null,"9234","内部監査室"]
[null,"9246","保険事業部"]
[null,"9258","野菜下処理ライン"]
[null,"9260","生鮮センター寮"]
[null,"9271","日配物流仕入振替"]
[null,"9283","いしかり文化教室"]
[null,"9295","石狩工場委託商品"]
[null,"9313","札幌配食第一工場"]
[null,"9337","シーナ文化教室"]
[null,"9349","ルーシー文化教室"]
[null,"9351","生活文化事業本部"]
[null,"9362","デリカキットライン"]
[null,"9374","ソシア文化教室"]
[null,"9398","新はっさむ文化教室"]
[null,"9404","農産焼成ライン"]
[null,"9416","商品部商品管理"]
[null,"9428","石狩農産ライン本部"]
[null,"9430","石狩デリカ本部"]
[null,"9441","江別物流センター"]
[null,"9453","きたみ春光文化教室"]
[null,"9465","労政部"]
[null,"9477","農産水物ライン"]
[null,"9507","おもてなし推進室"]
[null,"9519","平岡文化教室"]
[null,"9532","東光文化教室"]
[null,"9544","石狩惣菜工場寮"]
[null,"9556","岩見沢南文化教室"]
[null,"9568","旧宅配マーケティング部"]
[null,"9570","旧店舗カード推進室"]
[null,"9593","旧びほろ資産管理"]
[null,"9600","店舗マーケティング部"]
[null,"9611","帯広生鮮物流"]
[null,"9623","デイリー本部"]
[null,"9635","社会福祉推進部"]
[null,"9659","釧路店舗物流"]
[null,"9661","広報室"]
[null,"9672","惣菜事業本部"]
[null,"9684","サービス事業部"]
[null,"9696","野菜パックライン"]
[null,"9696","コンプライアンス室"]
[null,"9702","函館農産物流"]
[null,"9714","函館畜水産物流"]
[null,"9726","函館日配物流"]
[null,"9738","函館店舗物流"]
[null,"9740","釧路生鮮物流"]
[null,"9751","苫小牧地区本部"]
[null,"9763","北見地区本部"]
[null,"9787","宅配 運営部"]
[null,"9799","宅配 企画部"]
[null,"9817","宅配 西地区"]
[null,"9829","病院給食部"]
[null,"9831","宅配 東地区"]
[null,"9842","宅配 旭川地区"]
[null,"9854","宅配 函館苫小牧地区"]
[null,"9866","宅配 道東地区"]
[null,"9878","サテライト教室"]
[null,"4273","デュアルカナム本部"]
[null,"4467","大雪水資源本部"]
[null,"4481","物流企画管理部"]
[null,"4492","大雪水資源工場"]
[null,"4509","アルカナム事業部"]
[null,"4511","東京システム事業部"]
[null,"4522","札幌システム事業部"]
[null,"4534","コープトレーディング"]
[null,"4546","トドック電力"]
[null,"4686","トラベルエルフィン店"]
[null,"4698","トラベルステイ店"]
[null,"4704","トラベルパセオ川沿店"]
[null,"4716","トラベル星置店"]
[null,"4728","トラベルにしの店"]
[null,"4730","トラベルみわ店"]
[null,"4741","トラベルルーシー店"]
[null,"4753","トラベルソシア店"]
[null,"4765","トラベル貝塚店"]
[null,"4777","トラベル本部店"]
[null,"4789","トラベルいしかり店"]
[null,"4791","トラベルシーナ店"]
[null,"4807","トラベル湯の川店"]
[null,"4819","トラベル小樽南店"]
[null,"4821","トラベル平岡店"]
[null,"4832","トラベル東光店"]
[null,"4844","本部"]
[null,"5514","はまなす工場"]
[null,"5526","はまなすセンター"]
[null,"5540","本部"]
[null,"5551","はまなす食品㈱"]
[null,"5575","コープ協同保険㈱"]
[null,"5599","本社"]
[null,"6014","宅配運営"]
[null,"6026","集品Ａ（農産）"]
[null,"6038","集品Ｂ（冷凍）"]
[null,"6040","集品Ｃ（冷蔵）"]
[null,"6051","ドライＳＣ"]
[null,"6063","物流事業部"]
[null,"6075","配送管理部"]
[null,"6087","北見低温物流"]
[null,"6099","生鮮市場事務所"]
[null,"6105","店舗物流管理"]
[null,"6117","店舗江別ドライＴＣ"]
[null,"6129","店舗江別ドライＮＢ"]
[null,"6131","函館店舗物流"]
[null,"6142","札幌リカーセンター"]
[null,"6154","函館リカーセンター"]
[null,"6166","旭川リカーセンター"]
[null,"6178","帯広リカーセンター"]
[null,"6180","江別農産物流"]
[null,"6191","江別畜産物流"]
[null,"6208","江別水産物流"]
[null,"6210","苫小牧低温物流"]
[null,"6221","旭川低温物流"]
[null,"6233","釧路低温物流"]
[null,"6245","函館生鮮日配物流"]
[null,"6257","石狩工場物流"]
[null,"6269","石狩日配ＮＢ物流"]
[null,"6271","マテハン工房"]
[null,"6282","釧路店舗物流"]
[null,"6294","函館農産日配"]
[null,"6301","江別食品工場物流"]
[null,"6312","地方物流管理"]
[null,"6324","北見リカー"]
[null,"6336","HLS大雪水資源"]
[null,"0048","しろいし中央店"]
[null,"0061","やまはな店"]
[null,"0097","桑園店"]
[null,"8941","函館東センター"]
[null,"0103","新さっぽろ店"]

{"sheet":"税率","index":2,"n_rows":7,"n_cols":3,"rows_kept":7,"cut":false,"hidden":true,"merged":[]}
[]
[null,"税率"]
[null,"税率","名称"]
[null,"0","不課税"]
[null,"0","非課税"]
[null,"8","8%"]
[null,"10","10%"]

{"sheet":"使用方法","index":3,"n_rows":53,"n_cols":5,"rows_kept":53,"cut":false,"hidden":false,"merged":[]}
[]
[null,"【経費アップロードデータ作成手順】"]
[]
[]
[]
[]
[]
[]
[]
[]
[]
[]
[]
[]
[]
[]
[]
[]
[]
[null,"　①　経費データ [ヘッダ部情報] 入力"]
[null,"　　　　以下の情報を入力して下さい。"]
[null,null,"計上日付",null,"計上日付を入力して下さい。（YYYYMMDD形式の８桁）"]
[null,null,"取引先コード",null,"御社の取引先コードを入力して下さい。（６桁）"]
[null,null,"発注店舗コード",null,"発注店舗をドロップダウンリストより選択して下さい。"]
[null,null,"生協担当者",null,"当社の担当者を入力して下さい。（全半角文字混在可能で全角１０文字相当まで入力可）"]
[null,null,"入力者氏名",null,"入力される方のお名前を入力して下さい。（全半角文字混在可能で全角１０文字相当まで入力可）"]
[null,null,"税率",null,"税率をドロップダウンリストより選択して下さい。"]
[null,null,"入力者連絡先",null,"電話番号等の連絡先を入力して下さい。（英数字記号で２０文字まで入力可）"]
[null,null,"連絡事項",null,"連絡事項等ある場合はこちらに入力して下さい。（全半角文字混在可能で全角３０文字相当まで入力可）"]
[]
[null,"　②　経費データ [明細部情報] 入力"]
[null,"　　　　以下の情報を入力して下さい。"]
[null,null,"店舗CD",null,"店舗コードを入力して下さい。（４桁）"]
[null,null,"摘要",null,"摘要を入力して下さい。（全半角文字混在可能で全角４０文字相当まで入力可）"]
[null,null,"経費CD",null,"経費コードを入力して下さい。（４桁）"]
[null,null,"数量",null,"数量を入力して下さい。"]
[null,null,"単価",null,"単価を入力して下さい。"]
[]
[null,"　　　　補足"]
[null,null,"店舗名称、経費名称は本ツール(Excel)で保持するデータで名称表示しておりますが、各コードチェックは支払通知／経費納品伝票入力WEBシステムにて行うので、"]
[null,null,"任意のコードで名称が表示されない場合でもアップロードデータの作成は行う事ができます。"]
[]
[null,"　　　　補足"]
[null,null,"明細の最大件数は２００件となります。"]
[]
[]
[null,"　③　データ作成"]
[null,"　　　　「データ作成」ボタン押下により、アップロードファイルが出力されます。"]
[null,null,"出力場所",null,"本ツールが格納されているフォルダ"]
[null,null,"出力ファイル名",null,"経費アップロード.txt"]
[]
[null,"　　　　補足"]
[null,null,"既に同一ファイル名が存在する場合は上書きとなります。"]